Workbook

Sheet Bila_D
B2: Konzern-Bilanz (IFRS)
B3: zum 31. März 2018
C4: 2018-03-31 | D4: 2017-09-30 | H4: Y/Y in % | I4: Y/Y absolut
C5: Tsd. € | D5: Tsd. € | H5: in % | I5: Tsd. €
B6: AKTIVA
B7: Langfristige Vermögenswerte
B8: Geschäfts- oder Firmenwert | C8: 170893 | D8: 174313 | H8: =+C8/D8-1 -> -0.01961987918 | I8: =+C8-D8 -> -3420
B9: Sonstige immaterielle Vermögenswerte | C9: 66552 | D9: 68491 | H9: =+C9/D9-1 -> -0.02831028894 | I9: =+C9-D9 -> -1939
B10: Sachanlagen | C10: 55738 | D10: 58696 | H10: -0.05039525692 | I10: -2958
B11: Sonstige Ausleihungen | C11: 1747 | D11: 1824 | H11: -0.04221491228 | I11: -77
B12: Anteile an verbundenen nicht-konsolidierten Unternehmen | C12: 18377 | D12: 19178 | H12: -0.04176660757 | I12: -801
B13: Beteiligungen | C13: 122 | D13: 122 | H13: 0 | I13: 0
B14: Latente Ertragsteuern | C14: 77307 | D14: 77365 | H14: -0.0007496930136 | I14: -58
B15: Langfristige Forderungen aus Lieferungen und Leistungen | C15: 9828 | D15: 12741 | H15: -0.2286319755 | I15: -2913
B16: Sonstige langfristige Vermögenswerte | C16: 2646 | D16: 2490 | H16: 0.06265060241 | I16: 156
C17: =+SUM(C8:C16) -> 403210 | D17: =+SUM(D8:D16) -> 415220 | H17: -0.02892442561 | I17: -12010
B18: Kurzfristige Vermögenswerte
B19: Vorräte | C19: 247479 | D19: 234303 | H19: =+C19/D19-1 -> 0.05623487535 | I19: =+C19-D19 -> 13176
B20: Forderungen aus Lieferungen und Leistungen | C20: 179670 | D20: 195256 | H20: -0.07982341132 | I20: -15586
B21: Forderungen aus Lieferungen und Leistungen gegen nahe stehende Unternehmen | C21: 119121 | D21: 89835 | H21: 0.3259976624 | I21: 29286
B22: Forderungen aus Finanzausgleich | C22: 612269 | D22: 630721 | H22: -0.0292554077 | I22: -18452
B23: Steuererstattungsansprüche | C23: 4602 | D23: 2814 | H23: 0.6353944563 | I23: 1788
B24: Sonstige kurzfristige finanzielle Vermögenswerte | C24: 12818 | D24: 31126 | H24: -0.5881899377 | I24: -18308
B25: Sonstige kurzfristige nicht-finanzielle Vermögenswerte | C25: 18370 | D25: 19908 | H25: -0.07725537472 | I25: -1538
B26: Zahlungsmittel und Zahlungsmitteläquivalente | C26: 5651 | D26: 3925 | H26: 0.4397452229 | I26: 1726
C27: =+SUM(C19:C26) -> 1199980 | D27: =+SUM(D19:D26) -> 1207888 | H27: -0.006546964619 | I27: -7908
B28: Zur Veräußerung gehaltene Vermögenswerte | C28: 0 | D28: 0 | H28: =+C28/D28-1 ->  | I28: =+C28-D28 -> 0
C29: =+C27+C17+C28 -> 1603190 | D29: =+D27+D17+D28 -> 1623108 | H29: -0.01227151859 | I29: -19918
B30: PASSIVA
B31: Eigenkapital
B32: Gezeichnetes Kapital | C32: 89441 | D32: 89441 | H32: =+C32/D32-1 -> 0 | I32: =+C32-D32 -> 0
B33: Kapitalrücklage | C33: 620137 | D33: 620137 | H33: =+C33/D33-1 -> 0 | I33: 0
B34: Gewinnrücklagen | C34: 611246 | D34: 555215 | H34: 0.1009176625 | I34: 56031
B35: Sonstige Bestandteile des Eigenkapitals | C35: -60776 | D35: -49416 | H35: 0.2298850575 | I35: -11360
B36: Eigenkapital ohne Anteile nicht-beherrschender Gesellschafter | C36: =+SUM(C32:C35) -> 1260048 | D36: =+SUM(D32:D35) -> 1215377 | H36: 0.03675485055 | I36: 44671
B37: Ausgleichsposten für Anteile nicht-beherrschender Gesellschafter | C37: 21755 | D37: 26358 | H37: -0.1746338872 | I37: -4603
C38: =+C36+C37 -> 1281803 | D38: =+D36+D37 -> 1241735 | H38: 0.03226775439 | I38: 40068
B39: Langfristige Schulden
B40: Pensionsrückstellungen und ähnliche Verpflichtungen | C40: 45392 | D40: 37866 | H40: =+C40/D40-1 -> 0.1987534992 | I40: =+C40-D40 -> 7526
B41: Andere langfristige Rückstellungen | C41: 9985 | D41: 10139 | H41: -0.01518887464 | I41: -154
B42: Langfristige finanzielle Verbindlichkeiten | C42: 428 | D42: 593 | H42: -0.2782462057 | I42: -165
B43: Langfristige Leasingverbindlichkeiten | C43: 1440 | D43: 2995 | H43: -0.5191986644 | I43: -1555
B44: Sonstige langfristige nicht-finanzielle Verbindlichkeiten | C44: 4606 | D44: 4784 | H44: -0.03720735786 | I44: -178
B45: Latente Ertragsteuern | C45: 4899 | D45: 8918 | H45: -0.4506615833 | I45: -4019
C46: =+SUM(C40:C45) -> 66750 | D46: =+SUM(D40:D45) -> 65295 | H46: 0.02228348266 | I46: 1455
B47: Kurzfristige Schulden
B48: Kurzfristige Rückstellungen | C48: 20168 | D48: 23181 | H48: =+C48/D48-1 -> -0.1299771364 | I48: =+C48-D48 -> -3013
B49: Kurzfristige abgegrenzte Verbindlichkeiten | C49: 62113 | D49: 72237 | H49: -0.1401497847 | I49: -10124
B50: Kurzfristige finanzielle Verbindlichkeiten | C50: 8781 | D50: 5733 | H50: 0.5316588174 | I50: 3048
B51: Kurzfristiger Anteil langfristiger Leasingverbindlichkeiten | C51: 2791 | D51: 2819 | H51: -0.009932600213 | I51: -28
B52: Verbindlichkeiten aus Lieferungen und Leistungen | C52: 53112 | D52: 64870 | H52: -0.1812548173 | I52: -11758
B53: Kurzfristige Verbindlichkeiten aus Ertragsteuern | C53: 16245 | D53: 8367 | H53: 0.9415561133 | I53: 7878
B54: Verbindlichkeiten aus Lieferungen und Leistungen gegenüber nahe stehenden Unternehmen | C54: 30536 | D54: 35593 | H54: -0.1420784986 | I54: -5057
B55: Verbindlichkeiten aus Finanzausgleich | C55: 27971 | D55: 69642 | H55: -0.5983601849 | I55: -41671
B56: Sonstige kurzfristige nicht-finanzielle Verbindlichkeiten | C56: 32920 | D56: 33636 | H56: -0.02128671661 | I56: -716
C57: =+SUM(C48:C56) -> 254637 | D57: =+SUM(D48:D56) -> 316078 | H57: -0.1943855631 | I57: -61441
C58: =+C38+C46+C57 -> 1603190 | D58: =+D38+D46+D57 -> 1623108 | H58: -0.01227151859 | I58: -19918
B59: Der nachfolgende Konzernanhang ist integraler Bestandteil des ungeprüften Konzernabschlusses.
